bitfinex/quotes_SOLUSD_20240811
["timestamp","ask_amount","ask_price","bid_price","bid_amount"]
[1723419143817,17.2512,142.32,142.28,5.74809]
[1723419144134,11.63,142.32,142.29,5.6221]
[1723419144334,11.63,142.32,142.28,7.15311874]
[1723419144925,5.6199,142.35,142.3,5.74729]
[1723419145127,5.6213,142.32,142.28,5.6226]
[1723419145328,5.6215,142.31,142.27,5.74829]
[1723419145524,11.63,142.31,142.25,21.236]
[1723419145722,22.2456,142.36,142.26,5.6234]
[1723419145723,11.63,142.3,142.26,5.6234]
[1723419145915,11.63,142.3,142.25,31.07691879]
[1723419146310,17.252,142.3,142.25,31.07703721]
[1723419146523,5.6223,142.29,142.25,14.0589]
[1723419146717,17.2523,142.29,142.25,14.0589]
[1723419147332,5.622,142.3,142.25,19.6826]
[1723419147510,11.63,142.29,142.25,19.6826]
[1723419148347,11.63,142.29,142.25,14.0589]
[1723419148553,14.0529,142.32,142.24,1.40221393]
[1723419148728,11.63,142.25,142.21,14.0628]
[1723419149053,5.6227,142.28,142.23,5.6246]
[1723419149355,11.7319,142.29,142.24,5.6242]
[1723419149649,6.1096,142.29,142.23,14.0608]
[1723419149858,11.7319,142.29,142.24,7.02976631]
[1723419150027,11.63,142.28,142.24,5.6239]
[1723419150227,16.5307,142.3,142.22,0.12549]
[1723419150440,11.63,142.29,142.23,11.88098]
[1723419150771,33.7829,142.3,142.25,5.6238]
[1723419151452,28.1607,142.3,142.26,5.6233]
[1723419151956,26.9149,142.33,142.27,14.0575]
[1723419152130,26.9149,142.33,142.27,21.08595692]
[1723419152131,11.63,142.32,142.27,21.08595692]
[1723419152450,17.2512,142.32,142.28,5.6226]
[1723419153044,5.6204,142.34,142.29,7.02778833]
[1723419153649,17.2504,142.34,142.29,5.6222]
[1723419153864,11.63,142.33,142.27,14.0575]
[1723419154039,17.2515,142.31,142.27,14.0575]
[1723419154243,11.63,142.31,142.27,19.6805]
[1723419154548,11.63,142.3,142.25,15.9543]
[1723419154759,15.8195,142.35,142.25,15.9543]
[1723419155051,5.622,142.3,142.25,21.5779]
[1723419155233,5.6211,142.32,142.27,5.6227]
[1723419155836,5.6208,142.33,142.28,5.6226]
[1723419156231,5.6203,142.34,142.29,5.6222]
[1723419156432,11.63,142.33,142.29,5.6222]
[1723419157544,5.6203,142.34,142.29,5.6222]
[1723419157748,11.63,142.33,142.29,5.6222]
[1723419157959,17.2507,142.33,142.29,5.6222]
[1723419158555,11.63,142.33,142.29,5.6222]
[1723419158743,5.6199,142.35,142.3,5.6218]
[1723419158938,11.63,142.34,142.3,5.6218]
[1723419159254,11.63,142.34,142.3,7.02712549]
[1723419159447,11.63,142.34,142.3,5.6218]
[1723419160060,5.6196,142.36,142.31,0.12549]
[1723419160355,20.7084,142.39,142.33,11.75549]
[1723419160356,11.63,142.39,142.33,11.75549]
[1723419161276,5.6184,142.39,142.34,5.62]
[1723419161473,17.2484,142.39,142.34,5.62]
[1723419161634,5.6188,142.38,142.34,5.62]
[1723419161836,17.2488,142.38,142.33,5.74609]
[1723419162268,5.6188,142.38,142.33,5.74609]
[1723419162550,5.6188,142.38,142.34,5.6203]
[1723419163336,5.6188,142.38,142.33,5.74609]
[1723419163658,5.6191,142.37,142.33,5.74609]
[1723419163859,17.2488,142.38,142.33,5.74609]
[1723419164234,5.6188,142.38,142.33,5.74609]
[1723419164434,5.6184,142.39,142.34,5.62]
[1723419164637,14.0404,142.45,142.36,11.63]
[1723419164952,5.6192,142.37,142.33,14.0515]
[1723419165155,17.2488,142.38,142.33,19.6722]
[1723419165934,11.63,142.37,142.33,19.6722]
[1723419166572,5.6188,142.38,142.26,15.308]
[1723419166573,11.63,142.34,142.26,15.308]
[1723419166737,5.6204,142.34,142.29,5.6222]
[1723419167092,11.63,142.33,142.29,5.6222]
[1723419167255,5.6204,142.34,142.29,5.6222]
[1723419167256,11.63,142.34,142.31,5.6215]
[1723419168047,11.63,142.36,142.32,5.6209]
[1723419168870,11.63,142.33,142.29,14.0548]
[1723419169243,11.63,142.34,142.3,5.6218]
[1723419169946,11.63,142.35,142.31,5.6215]
[1723419170149,11.63,142.35,142.32,5.621]
[1723419170363,11.63,142.35,142.31,5.6214]
[1723419170555,11.63,142.35,142.3,5.6218]
[1723419170556,11.63,142.34,142.3,5.6218]
[1723419170955,11.63,142.33,142.3,5.6218]
[1723419171271,17.2507,142.33,142.29,14.0548]
[1723419171869,5.6199,142.35,142.29,14.0548]
[1723419172067,17.2503,142.34,142.29,14.0548]
[1723419172257,11.63,142.33,142.29,14.0548]
[1723419172750,11.63,142.33,142.3,5.6218]
[1723419173152,11.63,142.33,142.29,19.677]
[1723419173567,11.63,142.32,142.29,19.677]
[1723419176173,11.63,142.31,142.29,14.0548]
[1723419177776,5.6204,142.34,142.29,19.677]
[1723419178080,11.63,142.32,142.29,19.677]
[1723419179383,11.63,142.33,142.3,5.6216]
[1723419180086,11.63,142.34,142.3,5.6216]
[1723419180284,17.2504,142.34,142.3,5.6216]
[1723419180483,17.2504,142.34,142.29,14.0548]
[1723419180680,17.2507,142.33,142.29,19.677]
[1723419181773,0.25098,142.37,142.27,5.623]
[1723419181774,11.63,142.31,142.27,5.623]
[1723419181976,11.63,142.31,142.28,5.6226]
[1723419182568,5.6204,142.34,142.29,5.6221]
[1723419182785,11.63,142.32,142.28,19.6788]
[1723419183185,5.6202,142.35,142.3,5.6218]
[1723419183386,11.63,142.34,142.3,5.6218]
[1723419183775,11.63,142.33,142.3,5.6218]
[1723419184367,11.63,142.33,142.29,5.6222]
[1723419184592,11.63,142.33,142.3,5.6217]
[1723419184967,11.63,142.34,142.31,5.6215]
[1723419185168,11.63,142.35,142.3,14.0543]
[1723419185691,11.63,142.34,142.3,14.0543]
[1723419186069,17.2507,142.34,142.3,14.0543]
[1723419186604,11.63,142.34,142.3,19.6761]
[1723419186769,11.63,142.34,142.31,5.6214]
[1723419186970,5.6196,142.36,142.31,5.6214]
[1723419187171,11.63,142.35,142.31,5.6214]
[1723419187785,17.25,142.35,142.3,19.6761]
[1723419188097,17.25,142.35,142.31,5.6214]
[1723419188494,17.2504,142.34,142.3,19.6761]
[1723419188718,5.6207,142.33,142.3,14.0543]
[1723419188996,17.2504,142.34,142.3,14.0543]
[1723419189983,17.2504,142.34,142.3,19.6761]
[1723419190499,11.63,142.34,142.3,19.6761]
[1723419191497,22.2954,142.38,142.3,14.0543]
[1723419191681,11.63,142.37,142.32,14.0523]
[1723419191882,11.63,142.36,142.33,5.6206]
[1723419192697,11.63,142.34,142.29,14.18069]
[1723419192903,11.63,142.34,142.29,14.0552]
[1723419193296,11.63,142.34,142.31,5.6214]
[1723419193777,11.63,142.35,142.31,5.6214]
[1723419194876,11.63,142.35,142.32,5.6208]
[1723419195197,11.63,142.36,142.33,5.6206]
[1723419195378,11.63,142.36,142.34,5.6203]
[1723419195578,16.0825,142.38,142.34,5.6203]
[1723419195780,5.6179,142.4,142.33,27.08603014]
[1723419196611,11.63,142.38,142.33,14.0513]
[1723419196784,11.63,142.38,142.34,5.62]
[1723419196982,11.63,142.38,142.35,5.6198]
[1723419197495,11.63,142.37,142.34,5.6202]
[1723419197693,11.63,142.37,142.35,5.6198]
[1723419198207,11.63,142.37,142.36,5.6195]
[1723419198390,11.63,142.38,142.36,5.6195]
[1723419199180,11.63,142.39,142.36,5.6195]
[1723419199399,381.0,142.44,142.37,14.0472]
[1723419199711,11.63,142.43,142.39,5.6182]
[1723419200184,5.6167,142.44,142.4,5.6179]
[1723419200507,17.2468,142.43,142.39,5.6182]
[1723419200687,11.63,142.42,142.37,19.6659]
[1723419201093,11.63,142.42,142.38,5.6187]
[1723419201495,17.2472,142.42,142.38,5.6187]
[1723419201700,11.63,142.41,142.37,19.6662]
[1723419201908,11.63,142.41,142.38,5.6186]
[1723419202290,17.2472,142.42,142.38,5.6186]
[1723419202610,11.63,142.42,142.38,5.6186]
[1723419202815,5.6168,142.43,142.39,5.6182]
[1723419203018,11.63,142.43,142.39,5.6182]
[1723419204493,17.2469,142.43,142.38,5.6186]
[1723419204705,17.2469,142.43,142.39,5.6183]
[1723419205709,17.2469,142.43,142.38,5.6186]
[1723419206212,11.63,142.44,142.41,5.6175]
[1723419206508,11.63,142.44,142.4,19.6627]
[1723419206816,11.63,142.43,142.4,14.0449]
[1723419207316,5.6161,142.45,142.41,5.6175]
[1723419207512,11.63,142.44,142.41,5.6175]
[1723419207712,17.2468,142.43,142.37,41.3002]
[1723419207893,17.2473,142.42,142.37,35.289]
[1723419208214,5.6168,142.43,142.37,29.6702]
[1723419208422,11.63,142.42,142.39,5.6182]
[1723419209026,17.2473,142.42,142.37,35.289]
[1723419209321,11.63,142.42,142.38,5.6186]
[1723419209705,11.63,142.42,142.37,29.6702]
[1723419209706,11.63,142.43,142.37,41.3002]
[1723419209903,11.63,142.43,142.39,5.6183]
[1723419210301,11.63,142.43,142.4,5.6177]
[1723419210499,11.63,142.43,142.39,19.6635]
[1723419210924,11.63,142.43,142.4,5.6179]
[1723419211106,11.63,142.42,142.39,14.0452]
[1723419211299,11.63,142.42,142.39,19.6635]
[1723419211626,0.12549,142.47,142.39,19.6635]
[1723419211920,11.63,142.43,142.39,19.6635]
[1723419212614,11.63,142.43,142.4,5.6179]
[1723419213014,5.6152,142.47,142.41,14.0431]
[1723419213222,11.63,142.43,142.37,15.6229]
[1723419213411,5.616,142.45,142.4,5.6179]
[1723419214133,5.6164,142.44,142.4,5.6179]
[1723419214825,5.616,142.45,142.41,5.6175]
[1723419215238,5.6164,142.44,142.4,5.6178]
[1723419215401,5.616,142.45,142.39,14.0454]
[1723419215721,5.616,142.45,142.4,5.6178]
[1723419216301,5.6165,142.44,142.39,19.6636]
[1723419216508,11.63,142.43,142.39,19.6636]
[1723419216807,11.63,142.43,142.4,5.6178]
[1723419217633,11.63,142.43,142.41,5.6175]
[1723419218107,11.63,142.44,142.41,5.6175]
[1723419218607,11.63,142.44,142.4,5.6178]
[1723419218816,11.63,142.43,142.4,5.6178]
[1723419219010,11.63,142.43,142.39,14.0454]
[1723419219011,11.63,142.43,142.41,5.6175]
[1723419220220,11.63,142.43,142.4,5.6179]
[1723419220418,11.63,142.43,142.39,19.6635]
[1723419220619,11.63,142.42,142.39,14.0454]
[1723419221028,11.63,142.42,142.39,19.6636]
[1723419221336,11.63,142.42,142.4,5.6179]
[1723419221920,11.63,142.43,142.4,5.6179]
[1723419222331,11.63,142.44,142.4,5.6179]
[1723419222835,11.63,142.43,142.4,5.6179]
[1723419223435,11.63,142.43,142.39,14.0454]
[1723419223436,11.63,142.42,142.39,14.0454]
[1723419223934,11.63,142.4,142.36,19.6678]
[1723419224524,5.6178,142.41,142.37,5.6191]
[1723419224727,11.63,142.42,142.39,5.6182]
[1723419225127,6.1245,142.44,142.36,14.0484]
[1723419225323,11.63,142.41,142.36,14.0484]
[1723419225525,11.63,142.41,142.37,5.6191]
[1723419226034,11.63,142.42,142.36,25.6784]
[1723419226531,11.63,142.43,142.38,14.0463]
[1723419226747,11.63,142.42,142.39,5.6183]
[1723419226916,22.0011,142.45,142.4,5.6179]
[1723419227117,11.63,142.43,142.4,5.6179]
[1723419228745,11.63,142.43,142.39,5.6182]
[1723419229742,17.2469,142.43,142.39,5.6182]
[1723419230243,11.63,142.42,142.39,5.6182]
[1723419230644,11.63,142.4,142.35,14.17519]
[1723419230813,11.63,142.4,142.36,5.6192]
[1723419231341,11.63,142.4,142.37,5.619]
[1723419233948,17.2488,142.38,142.33,21.6041]
[1723419234121,11.63,142.39,142.37,5.6189]
[1723419234317,5.6173,142.42,142.37,5.6189]
[1723419234623,11.63,142.39,142.37,5.6189]
[1723419234832,11.63,142.38,142.36,14.0483]
[1723419235347,5.6176,142.41,142.36,19.6677]
[1723419235553,6.5632,142.43,142.38,14.0463]
[1723419235718,11.63,142.42,142.38,19.665]
[1723419235923,11.63,142.41,142.38,19.665]
[1723419237936,11.63,142.4,142.38,14.0463]
[1723419238142,11.63,142.4,142.38,19.665]
[1723419238327,11.63,142.41,142.38,19.665]
[1723419239038,11.63,142.4,142.38,14.0463]
[1723419239259,11.63,142.39,142.36,5.6194]
[1723419239444,11.63,142.39,142.37,5.6191]
[1723419239767,11.63,142.39,142.36,5.6195]
[1723419239937,11.63,142.38,142.35,14.0494]
[1723419240261,11.63,142.39,142.36,5.6192]
[1723419240554,11.63,142.39,142.36,5.6194]
[1723419241429,5.6177,142.41,142.37,5.6191]
[1723419241631,11.63,142.4,142.37,5.6191]
[1723419241860,11.63,142.4,142.36,5.6194]
[1723419242451,5.6172,142.42,142.37,5.6191]
[1723419242647,11.63,142.41,142.37,5.6191]
[1723419243264,11.63,142.41,142.35,14.0494]
[1723419243265,11.63,142.4,142.36,5.6194]
[1723419243648,6.5632,142.43,142.35,25.6794]
[1723419243962,17.2475,142.41,142.37,5.619]
[1723419244166,11.63,142.4,142.37,5.619]
[1723419244343,11.63,142.4,142.38,5.6187]
[1723419244851,11.63,142.4,142.37,5.619]
[1723419245252,28.0151,142.45,142.38,1.4046675]
[1723419245253,16.3851,142.45,142.38,1.4046675]
[1723419245452,5.6165,142.44,142.39,5.6183]
[1723419245648,17.2465,142.44,142.39,5.6183]
[1723419246367,33.6311,142.45,142.4,1.40435037]
[1723419246543,33.6311,142.45,142.39,14.0453]
[1723419246741,11.63,142.44,142.39,14.0453]
[1723419246962,11.63,142.44,142.4,1.40427755]
[1723419247148,11.63,142.42,142.38,5.6186]
[1723419247558,17.2469,142.43,142.38,5.6186]
[1723419248244,11.63,142.43,142.4,5.6179]
[1723419248449,17.2464,142.44,142.4,5.6179]
[1723419248653,22.0012,142.45,142.4,5.6179]
[1723419248875,11.63,142.44,142.4,5.6179]
[1723419249173,5.6152,142.47,142.41,12.63612159]
[1723419249352,17.2452,142.47,142.41,12.63612159]
[1723419249542,17.2452,142.47,142.42,5.6171]
[1723419250367,5.6156,142.46,142.41,5.6175]
[1723419250567,11.63,142.44,142.4,19.6622]
[1723419250862,11.63,142.44,142.37,0.12549]
[1723419250863,6.0209,142.47,142.37,14.0476]
[1723419251164,5.6182,142.4,142.35,21.5035]
[1723419251368,5.6182,142.4,142.35,20.6947]
[1723419251369,17.248,142.4,142.35,20.6947]
[1723419251865,11.63,142.39,142.35,20.6947]
[1723419252065,17.2483,142.39,142.35,20.6947]
[1723419252368,17.2496,142.36,142.31,44.54219189]
[1723419252542,11.63,142.35,142.31,37.1966]
[1723419253062,11.63,142.36,142.33,5.6206]
[1723419253449,17.2496,142.36,142.31,36.2916]
[1723419253655,5.6196,142.36,142.31,36.2916]
[1723419253885,11.63,142.35,142.31,36.2916]
[1723419254287,11.63,142.36,142.32,7.025902]
[1723419254453,11.63,142.36,142.32,5.6208]
[1723419255055,5.6184,142.39,142.33,1.40508716]
[1723419255281,11.63,142.38,142.34,5.6202]
[1723419255471,17.2487,142.38,142.34,5.6202]
[1723419255656,17.2488,142.38,142.33,5.6206]
[1723419256182,17.2488,142.38,142.34,5.6203]
[1723419256383,11.63,142.37,142.34,5.6203]
[1723419256682,11.63,142.38,142.34,5.6203]
[1723419258460,22.0636,142.41,142.33,14.0513]
[1723419258783,17.2492,142.37,142.33,14.0513]
[1723419261559,11.63,142.37,142.33,19.6716]
[1723419261761,5.6191,142.37,142.33,19.6716]
[1723419262059,11.63,142.36,142.3,15.45963045]
[1723419262365,14.0474,142.38,142.28,19.4814339]
[1723419262586,15.0087,142.35,142.27,15.1088]
[1723419262958,5.622,142.3,142.27,15.1088]
[1723419263158,5.622,142.3,142.25,5.6237]
[1723419263383,5.6216,142.31,142.26,5.6233]
[1723419263790,17.252,142.3,142.25,5.6238]
[1723419264179,17.252,142.3,142.26,5.6234]
[1723419265000,15.0087,142.35,142.24,30.3627]
[1723419265173,11.63,142.28,142.24,35.9866]
[1723419265371,11.63,142.27,142.24,14.0603]
[1723419266694,11.63,142.26,142.24,14.0603]
[1723419267395,5.6227,142.28,142.24,14.0603]
[1723419268803,5.6227,142.28,142.24,19.6845]
[1723419269102,15.8102,142.29,142.24,19.6845]
[1723419269303,11.63,142.27,142.24,19.6845]
[1723419269665,11.63,142.26,142.21,16.554]
[1723419269870,11.63,142.26,142.21,30.6175]
[1723419270306,11.63,142.26,142.23,5.6245]
[1723419271776,11.63,142.26,142.21,30.6175]
[1723419271777,5.6227,142.28,142.24,5.6242]
[1723419271975,11.63,142.28,142.25,5.6238]
[1723419272178,11.63,142.27,142.24,5.6242]
[1723419272698,11.63,142.26,142.23,19.6853]
[1723419272881,11.63,142.25,142.22,5.6247]
[1723419273076,11.63,142.25,142.22,14.0619]
[1723419273285,11.63,142.26,142.22,15.46793526]
[1723419273490,11.63,142.25,142.22,19.6866]
[1723419273871,15.8102,142.29,142.24,5.6241]
[1723419274098,11.63,142.27,142.24,5.6241]
[1723419274601,11.63,142.27,142.22,14.0619]
[1723419274766,11.63,142.27,142.23,5.6246]
[1723419274974,11.63,142.27,142.22,15.46794637]
[1723419275286,11.63,142.27,142.25,5.6236]
[1723419275674,11.63,142.27,142.24,19.6843]
[1723419276875,11.63,142.27,142.24,19.6844]
[1723419277074,11.63,142.26,142.23,5.6246]
[1723419277397,11.63,142.27,142.23,5.6246]
[1723419278701,11.63,142.27,142.24,5.6242]
[1723419279501,21.4326,142.29,142.24,5.6242]
[1723419279734,11.63,142.27,142.23,15.46675512]
[1723419279874,6.2636,142.3,142.26,5.6235]
[1723419280203,11.63,142.28,142.25,5.6238]
[1723419280503,11.63,142.28,142.24,7.03001671]
[1723419280704,11.63,142.28,142.25,5.6238]
[1723419281069,6.2636,142.3,142.23,14.0608]
[1723419281307,5.623,142.28,142.23,19.6852]
[1723419281681,5.623,142.28,142.24,5.6242]
[1723419282606,11.8856,142.3,142.25,5.6237]
[1723419282899,15.7521,142.32,142.26,5.6234]
[1723419283280,5.622,142.3,142.25,19.6829]
[1723419283489,17.252,142.3,142.26,5.6234]
[1723419284194,11.63,142.3,142.26,5.6234]
[1723419286021,17.2519,142.3,142.26,5.6234]
[1723419287238,11.63,142.28,142.22,14.0624]
[1723419287522,11.63,142.27,142.22,14.0624]
[1723419288600,11.63,142.27,142.23,5.6246]
[1723419289406,11.63,142.26,142.23,5.6246]
[1723419289823,5.6231,142.27,142.23,5.6246]
[1723419289824,11.63,142.27,142.23,5.6245]
[1723419290623,17.2532,142.27,142.22,19.6873]
[1723419291602,11.63,142.26,142.22,19.6873]
[1723419293232,11.63,142.25,142.22,19.6873]
[1723419293428,11.63,142.26,142.22,19.6873]
[1723419293628,6.5476,142.29,142.21,5.72566904]
[1723419293629,11.63,142.24,142.21,5.72566904]
[1723419294518,11.63,142.24,142.21,0.10026904]
[1723419294757,11.63,142.23,142.21,0.10026904]
[1723419296006,11.63,142.24,142.21,0.10026904]
[1723419296407,11.63,142.26,142.21,15.56955333]
[1723419297015,27.2723,142.27,142.23,5.6246]
[1723419297410,32.8955,142.27,142.23,5.6246]
[1723419297630,32.8955,142.27,142.22,5.6249]
[1723419298311,11.63,142.26,142.22,5.6249]
[1723419298847,11.63,142.27,142.23,14.0611]
[1723419299007,17.2535,142.26,142.21,5.72556904]
[1723419300131,17.2535,142.26,142.22,5.6249]
[1723419300614,11.63,142.26,142.22,5.6249]
[1723419300822,11.63,142.25,142.22,5.6249]
[1723419301050,5.6231,142.27,142.22,5.6249]
[1723419301224,11.63,142.25,142.22,5.6249]
[1723419301936,11.63,142.23,142.21,0.10026904]
[1723419302139,5.625,142.22,142.21,0.10026904]
[1723419302349,5.6247,142.23,142.21,0.10026904]
[1723419303428,5.6247,142.23,142.18,5.6265]
[1723419303625,6.5012,142.26,142.17,14.0673]
[1723419303626,11.63,142.22,142.17,14.0673]
[1723419303852,11.63,142.21,142.17,19.694]
[1723419304146,11.63,142.21,142.18,5.6266]
[1723419305350,11.63,142.2,142.17,14.16756904]
[1723419305534,17.2566,142.18,142.17,0.10026904]
[1723419305747,5.6266,142.18,142.17,0.10026904]
[1723419305918,6.19309,142.21,142.17,0.10026904]
[1723419305919,5.6262,142.19,142.17,0.10026904]
[1723419306443,5.6266,142.18,142.17,0.10026904]
[1723419306614,17.2566,142.18,142.17,0.10026904]
[1723419306816,17.2566,142.18,142.13,5.6286]
[1723419307259,11.63,142.15,142.12,14.0716]
[1723419307536,11.63,142.13,142.09,19.7055]
[1723419307751,11.63,142.12,142.09,19.7055]
[1723419307912,5.6274,142.16,142.11,5.6294]
[1723419308313,23.33,142.15,142.12,5.629]
[1723419308551,23.33,142.15,142.11,5.6293]
[1723419310453,28.9579,142.15,142.1,5.6298]
[1723419311154,5.6282,142.14,142.09,19.7056]
[1723419311349,28.9579,142.15,142.09,14.0754]
[1723419311545,28.9579,142.15,142.09,19.7055]
[1723419312431,5.6282,142.14,142.09,19.7055]
[1723419312667,5.6286,142.13,142.09,14.0754]
[1723419312966,28.9586,142.13,142.09,14.0754]
[1723419313787,23.33,142.11,142.06,14.0783]
[1723419313956,23.33,142.11,142.08,5.6306]
[1723419314150,28.9587,142.13,142.08,5.6306]
[1723419314569,5.6291,142.12,142.07,5.6309]
[1723419315080,5.6294,142.11,142.06,19.7096]
[1723419315279,28.9595,142.11,142.06,19.7097]
[1723419315577,28.9595,142.11,142.06,14.0783]
[1723419315578,5.6298,142.1,142.06,14.0783]
[1723419315754,5.6306,142.08,142.03,19.7139]
[1723419316069,5.631,142.07,142.03,14.0814]
[1723419316663,45.6283,142.09,142.03,14.0814]
[1723419316865,22.2983,142.09,142.03,38.81951245]
[1723419317177,22.3667,142.13,142.05,37.4087]
[1723419317375,22.3667,142.13,142.06,1.40769977]
[1723419317569,5.6297,142.11,142.06,5.6313]
[1723419317770,22.3667,142.13,142.05,37.4087]
[1723419317979,22.3667,142.13,142.08,5.6303]
[1723419318286,22.3667,142.13,142.09,5.6301]
[1723419318479,27.9953,142.13,142.08,5.6305]
[1723419318792,5.6286,142.14,142.09,5.6299]
[1723419319081,5.629,142.12,142.07,14.0768]
[1723419319252,5.6296,142.11,142.05,23.33]
[1723419319459,5.6296,142.11,142.05,28.9614]
[1723419319682,5.6296,142.11,142.06,5.6313]
[1723419319868,5.6291,142.12,142.07,5.6309]
[1723419321861,22.5405,142.17,142.08,14.0759]
[1723419322167,22.5405,142.17,142.07,23.33]
[1723419322168,5.6274,142.16,142.11,5.6293]
[1723419322386,5.6274,142.16,142.11,19.7026]
[1723419322679,5.6278,142.15,142.1,5.6297]
[1723419323186,23.33,142.16,142.11,5.6292]
[1723419323187,28.9575,142.16,142.11,5.6292]
[1723419323484,5.6283,142.14,142.1,14.0737]
[1723419323989,5.6279,142.15,142.1,14.0737]
[1723419324483,5.6282,142.14,142.1,19.7034]
[1723419325056,5.6282,142.14,142.07,38.4802]
[1723419325057,5.6286,142.13,142.08,5.6303]
[1723419325252,5.6293,142.12,142.07,19.7082]
[1723419326087,5.6295,142.11,142.07,14.0772]
[1723419326263,5.6295,142.11,142.07,19.7082]
[1723419326589,23.33,142.12,142.07,19.7082]
[1723419327085,28.959,142.12,142.07,19.7082]
[1723419327766,5.6294,142.11,142.07,19.7082]
[1723419327965,5.6294,142.11,142.07,14.0772]
[1723419328266,5.6298,142.1,142.06,5.6313]
[1723419328581,16.4974,142.11,142.07,5.631]
[1723419329577,22.1268,142.11,142.06,19.7091]
[1723419329779,5.6298,142.1,142.06,19.7091]
[1723419329982,5.6298,142.1,142.06,14.0778]
[1723419330490,22.1269,142.11,142.06,19.709]
[1723419330669,22.1269,142.11,142.07,5.6309]
[1723419331271,22.1269,142.11,142.06,19.7092]
[1723419331789,16.1457,142.14,142.09,5.6301]
[1723419332176,21.7742,142.14,142.09,5.6301]
[1723419332375,5.629,142.12,142.08,19.7063]
[1723419332576,5.629,142.12,142.08,14.0758]
[1723419333778,28.9589,142.13,142.07,5.6309]
[1723419333995,23.33,142.13,142.08,5.6305]
[1723419334494,28.9587,142.13,142.09,5.6301]
[1723419334685,28.9587,142.13,142.07,19.7075]
[1723419334989,5.6292,142.12,142.07,19.7075]
[1723419335295,5.6291,142.12,142.07,19.7078]
[1723419335882,5.6295,142.11,142.07,19.7078]
[1723419336064,5.629,142.12,142.07,19.7078]
[1723419336383,23.33,142.13,142.09,5.6299]
[1723419336587,21.774,142.14,142.07,14.0769]
[1723419336787,21.774,142.14,142.09,5.6301]
[1723419337492,5.629,142.12,142.08,5.6306]
[1723419337893,5.629,142.12,142.07,19.7078]
[1723419338995,5.6294,142.11,142.07,14.0769]
[1723419339694,5.6294,142.11,142.07,19.7078]
[1723419339998,5.6291,142.12,142.07,19.7078]
[1723419340775,29.08409,142.13,142.08,5.6304]
[1723419341095,23.45549,142.13,142.09,5.6302]
[1723419341296,23.33,142.13,142.1,5.6297]
[1723419341980,23.33,142.13,142.09,19.7052]
[1723419343201,28.9586,142.13,142.09,19.7052]
[1723419343700,28.9586,142.13,142.09,14.0751]
[1723419344406,5.75449,142.12,142.07,5.6309]
[1723419344993,0.12549,142.12,142.08,5.6305]
[1723419345197,35.6224,142.13,142.08,5.6305]
[1723419345498,5.75449,142.12,142.08,5.6305]
[1723419346099,0.12549,142.12,142.08,5.6305]
[1723419346278,0.37647,142.12,142.08,5.6305]
[1723419349182,11.67,142.1,142.06,19.7093]
[1723419349581,11.67,142.1,142.07,0.10026904]
[1723419351395,11.67,142.09,142.07,0.10026904]
[1723419352277,17.3003,142.09,142.07,0.10026904]